bitfinex-derivatives/quotes_SOLF0:USTF0_20251025
["timestamp","ask_amount","ask_price","bid_price","bid_amount"]
[1761385328762,3.86528882,193.63,193.59,2.88]
[1761385328959,3.86528882,193.62,193.59,2.88]
[1761385329147,3.86528882,193.61,193.59,2.88]
[1761385329352,3.86528882,193.6,193.59,2.88]
[1761385329555,3.86528882,193.62,193.59,2.88]
[1761385329755,3.86528882,193.61,193.59,2.88]
[1761385330058,3.86528882,193.6,193.59,2.88]
[1761385330259,3.86528882,193.62,193.53,2.67]
[1761385330462,3.86528882,193.61,193.53,2.67]
[1761385330657,3.86528882,193.6,193.53,2.67]
[1761385330853,3.86528882,193.59,193.53,2.67]
[1761385331060,3.86528882,193.62,193.53,2.67]
[1761385331264,3.86528882,193.61,193.53,2.67]
[1761385331455,3.86528882,193.6,193.53,2.67]
[1761385331657,3.86528882,193.59,193.53,2.67]
[1761385331858,3.86528882,193.58,193.53,2.67]
[1761385332059,3.86528882,193.61,193.53,2.67]
[1761385332254,3.86528882,193.6,193.53,2.67]
[1761385332454,3.86528882,193.59,193.53,2.67]
[1761385332657,3.86528882,193.58,193.53,2.67]
[1761385332856,4.74837049,193.62,193.53,2.67]
[1761385332857,3.86528882,193.57,193.53,2.67]
[1761385333162,3.86528882,193.61,193.53,2.67]
[1761385333363,3.86528882,193.6,193.53,2.67]
[1761385333563,3.86528882,193.59,193.53,2.67]
[1761385333764,3.86528882,193.58,193.53,2.67]
[1761385333961,3.86528882,193.57,193.53,2.67]
[1761385334163,3.86528882,193.61,193.53,2.67]
[1761385334361,3.86528882,193.6,193.53,2.67]
[1761385334562,3.86528882,193.59,193.53,2.67]
[1761385334869,3.86528882,193.58,193.53,2.67]
[1761385335057,3.86528882,193.57,193.53,2.67]
[1761385335368,8.64464479,193.61,193.53,2.67]
[1761385335665,3.87664475,193.6,193.53,2.67]
[1761385335863,3.87664475,193.59,193.53,2.67]
[1761385336063,3.87664475,193.58,193.56,2.67]
[1761385336258,3.87664475,193.57,193.56,2.67]
[1761385348573,3.87664475,193.57,193.56,5.01810706]
[1761385357487,3.87664475,193.57,193.56,2.67]
[1761385362794,3.87664475,193.57,193.56,4.17275599]
[1761385381202,3.87664475,193.57,193.56,2.67]
[1761385381399,3.87664475,193.57,193.56,4.17275599]
[1761385395415,3.87664475,193.57,193.56,1.50275599]
[1761385395416,3.92788135,193.57,193.56,1.50275599]
[1761385395607,3.92788135,193.57,193.56,4.35275599]
[1761385405016,3.92788135,193.57,193.56,2.85]
[1761385405223,3.92788135,193.57,193.56,4.35275599]
[1761385408129,4.7792176,193.62,193.57,2.85]
[1761385408420,3.92561828,193.61,193.6,1.50275599]
[1761385410120,3.92561828,193.61,193.58,1.50275599]
[1761385410324,3.92561828,193.6,193.58,1.50275599]
[1761385410623,3.92561828,193.59,193.58,1.50275599]
[1761385412527,3.92561828,193.59,193.58,4.35275599]
[1761385422937,3.92561828,193.59,193.58,2.85]
[1761385423636,3.92561828,193.63,193.58,2.85]
[1761385423841,3.92561828,193.62,193.61,2.88]
[1761385424336,3.92561828,193.65,193.61,2.88]
[1761385424543,3.92561828,193.64,193.61,2.88]
[1761385424737,3.92561828,193.63,193.61,2.88]
[1761385424939,120.07198844,193.66,193.62,2.88]
[1761385425139,3.91173143,193.65,193.62,2.88]
[1761385425439,3.91173143,193.64,193.62,2.88]
[1761385425737,120.07198844,193.66,193.62,2.88]
[1761385425935,3.9102533,193.65,193.62,2.88]
[1761385426137,3.9102533,193.64,193.62,2.88]
[1761385426341,120.07198844,193.66,193.62,2.88]
[1761385426541,3.90907258,193.65,193.62,2.88]
[1761385426733,3.90907258,193.64,193.62,2.88]
[1761385426933,3.90907258,193.65,193.62,2.88]
[1761385427132,3.90907258,193.64,193.62,2.88]
[1761385427335,3.90907258,193.65,193.62,2.88]
[1761385427535,3.90907258,193.64,193.62,2.88]
[1761385427835,3.90907258,193.65,193.62,2.88]
[1761385428034,3.90907258,193.64,193.62,2.88]
[1761385428235,3.90907258,193.65,193.62,2.88]
[1761385428440,3.90907258,193.64,193.62,2.88]
[1761385428641,3.90907258,193.65,193.62,2.88]
[1761385428836,3.90907258,193.64,193.62,2.88]
[1761385429036,3.90907258,193.65,193.62,2.88]
[1761385434865,119.17307721,193.66,193.62,2.88]
[1761385436561,3.90285646,193.65,193.62,62.28]
[1761385436961,3.90285646,193.65,193.6,2.88]
[1761385437157,3.90285646,193.65,193.61,65.16]
[1761385438862,3.90285646,193.65,193.62,2.82]
[1761385439061,3.90285646,193.65,193.61,65.1]
[1761385439860,3.90285646,193.65,193.62,2.82]
[1761385445161,3.90285646,193.65,193.61,65.1]
[1761385447058,3.90285646,193.65,193.62,2.82]
[1761385454068,3.90285646,193.64,193.62,65.08]
[1761385454267,119.17307721,193.66,193.62,65.08]
[1761385454268,3.90285646,193.65,193.62,65.08]
[1761385454468,3.90285646,193.64,193.62,65.08]
[1761385454671,3.90285646,193.65,193.62,65.08]
[1761385454970,3.90285646,193.64,193.63,2.73]
[1761385455164,3.90285646,193.65,193.63,2.73]
[1761385455363,3.90285646,193.64,193.63,2.73]
[1761385455565,3.90285646,193.65,193.63,2.73]
[1761385455764,3.90285646,193.64,193.63,2.73]
[1761385455964,3.90285646,193.65,193.63,2.73]
[1761385456171,3.90285646,193.64,193.63,2.73]
[1761385456372,119.17307721,193.66,193.63,2.73]
[1761385456373,3.90285646,193.65,193.63,2.73]
[1761385457475,3.90285646,193.64,193.63,2.73]
[1761385457672,3.90285646,193.65,193.63,2.73]
[1761385458162,3.90285646,193.64,193.63,2.73]
[1761385458363,3.90285646,193.65,193.63,2.73]
[1761385458569,3.90285646,193.64,193.63,2.73]
[1761385458769,3.90285646,193.65,193.63,2.73]
[1761385458962,3.90285646,193.64,193.63,2.73]
[1761385459162,3.90285646,193.65,193.63,2.73]
[1761385459366,3.90285646,193.64,193.63,2.73]
[1761385459666,3.90285646,193.65,193.63,2.73]
[1761385459868,3.90285646,193.64,193.63,2.73]
[1761385460168,3.90285646,193.65,193.63,2.73]
[1761385460368,3.90285646,193.64,193.63,2.73]
[1761385460572,3.90285646,193.65,193.63,2.73]
[1761385460775,3.90285646,193.64,193.63,2.73]
[1761385461076,3.90285646,193.65,193.63,2.73]
[1761385461266,3.90285646,193.64,193.63,2.73]
[1761385461468,3.90285646,193.65,193.63,2.73]
[1761385461668,3.90285646,193.64,193.63,2.73]
[1761385461869,3.90285646,193.65,193.63,2.73]
[1761385462176,3.90285646,193.64,193.63,2.73]
[1761385462379,3.90285646,193.65,193.63,2.73]
[1761385462675,3.90285646,193.64,193.63,2.73]
[1761385468183,4.7792176,193.68,193.63,2.73]
[1761385468882,9.05161012,193.68,193.63,2.73]
[1761385469077,4.7792176,193.68,193.63,2.73]
[1761385469282,4.7792176,193.69,193.63,2.73]
[1761385469483,12.98237751,193.69,193.63,2.73]
[1761385469784,4.7792176,193.69,193.63,2.73]
[1761385470185,12.98191369,193.69,193.63,2.73]
[1761385470376,4.7792176,193.69,193.63,2.73]
[1761385470784,12.98148552,193.69,193.63,2.73]
[1761385470983,4.7792176,193.69,193.63,2.73]
[1761385471471,12.98148664,193.69,193.63,2.73]
[1761385471676,4.7792176,193.69,193.63,2.73]
[1761385472072,12.98109959,193.69,193.63,2.73]
[1761385472279,4.7792176,193.69,193.63,2.73]
[1761385472681,12.98074692,193.69,193.63,2.73]
[1761385472879,4.7792176,193.69,193.63,2.73]
[1761385473285,12.98107984,193.69,193.63,2.73]
[1761385473588,4.7792176,193.69,193.63,2.73]
[1761385474083,12.98117951,193.69,193.63,2.73]
[1761385474283,4.7792176,193.69,193.63,2.73]
[1761385474886,12.98078218,193.69,193.63,2.73]
[1761385475089,4.27283005,193.68,193.63,2.73]
[1761385475289,4.7792176,193.69,193.63,2.73]
[1761385475888,12.98158782,193.69,193.63,2.73]
[1761385476085,4.27283005,193.68,193.63,2.73]
[1761385476281,4.7792176,193.69,193.63,2.73]
[1761385476683,12.98147701,193.69,193.63,2.73]
[1761385476983,4.27283005,193.68,193.63,2.73]
[1761385479385,4.7792176,193.69,193.63,2.73]
[1761385480080,3.85560327,193.68,193.63,2.73]
[1761385480279,3.85560327,193.67,193.63,2.73]
[1761385480477,3.85560327,193.66,193.63,2.73]
[1761385480683,3.85560327,193.65,193.63,2.73]
[1761385480882,4.34089799,193.68,193.63,2.73]
[1761385481082,3.85549339,193.67,193.63,2.73]
[1761385481282,3.85549339,193.66,193.63,2.73]
[1761385481482,3.85549339,193.65,193.63,2.73]
[1761385481782,4.34089799,193.68,193.63,2.73]
[1761385481983,3.85549325,193.67,193.63,2.73]
[1761385482183,3.85549325,193.66,193.63,2.73]
[1761385482383,3.85549325,193.65,193.63,2.73]
[1761385482583,4.34089799,193.68,193.63,2.73]
[1761385482781,3.85540273,193.67,193.63,2.73]
[1761385482985,3.85540273,193.66,193.63,2.73]
[1761385483181,3.85540273,193.65,193.63,2.73]
[1761385483387,4.34089799,193.68,193.63,2.73]
[1761385483584,3.85552207,193.67,193.63,2.73]
[1761385483788,3.85552207,193.66,193.63,2.73]
[1761385483989,3.85552207,193.65,193.63,2.73]
[1761385484189,4.34089799,193.68,193.63,2.73]
[1761385484390,3.85549532,193.67,193.63,2.73]
[1761385484589,3.85549532,193.66,193.64,62.24]
[1761385484784,3.85549532,193.65,193.64,62.24]
[1761385485089,3.85549532,193.65,193.64,65.1]
[1761385502915,3.85549532,193.65,193.64,2.86]
[1761385503114,3.85549532,193.65,193.64,65.1]
[1761385508421,3.85549532,193.65,193.64,2.86]
[1761385508721,3.85549532,193.65,193.64,62.22]
[1761385509115,3.85549532,193.65,193.61,62.22]
[1761385509316,3.85549532,193.64,193.61,65.08]
[1761385509622,3.85549532,193.63,193.61,65.08]
[1761385509814,3.85549532,193.62,193.61,65.08]
[1761385516327,3.85549532,193.64,193.61,65.08]
[1761385516521,3.85549532,193.63,193.61,65.08]
[1761385516721,3.85549532,193.62,193.61,65.08]
[1761385516927,3.85549532,193.64,193.61,65.08]
[1761385517127,3.85549532,193.63,193.61,65.08]
[1761385517315,3.85549532,193.62,193.61,65.08]
[1761385517514,3.85549532,193.64,193.61,65.08]
[1761385517719,3.85549532,193.63,193.61,65.08]
[1761385517919,3.85549532,193.62,193.61,65.08]
[1761385518127,3.85549532,193.64,193.61,62.24]
[1761385518319,3.85549532,193.63,193.61,62.24]
[1761385518516,3.85549532,193.62,193.61,62.24]
[1761385518721,3.85549532,193.64,193.61,62.24]
[1761385518918,3.85549532,193.63,193.61,62.24]
[1761385519121,3.85549532,193.62,193.61,65.1]
[1761385519430,3.85549532,193.64,193.61,65.1]
[1761385519728,3.85549532,193.63,193.61,65.1]
[1761385519922,3.85549532,193.62,193.61,65.1]
[1761385520125,3.85549532,193.64,193.61,65.1]
[1761385520325,3.85549532,193.63,193.61,65.1]
[1761385520527,3.85549532,193.62,193.61,65.1]
[1761385520727,3.85549532,193.64,193.61,65.1]
[1761385521019,3.85549532,193.63,193.61,65.1]
[1761385521232,3.85549532,193.62,193.61,65.1]
[1761385521532,3.85549532,193.65,193.61,65.1]
[1761385521830,3.85549532,193.64,193.61,65.1]
[1761385522033,3.85549532,193.63,193.61,65.1]
[1761385522330,3.85549532,193.62,193.61,65.1]
[1761385522530,8.18765374,193.66,193.61,65.1]
[1761385522731,3.85549532,193.65,193.61,65.1]
[1761385523029,3.85549532,193.64,193.61,65.1]
[1761385523230,3.85549532,193.63,193.61,65.1]
[1761385523425,4.33215842,193.66,193.61,65.1]
[1761385523426,3.85549532,193.65,193.61,65.1]
[1761385523625,3.85549532,193.64,193.61,65.1]
[1761385523825,3.85549532,193.63,193.61,65.1]
[1761385524030,3.85549532,193.65,193.61,65.1]
[1761385524234,3.85549532,193.64,193.61,65.1]
[1761385524535,3.85549532,193.63,193.61,65.1]
[1761385524830,3.85549532,193.65,193.62,2.86]
[1761385525031,3.85549532,193.64,193.62,2.86]
[1761385525229,3.85549532,193.63,193.62,2.86]
[1761385525430,3.85549532,193.65,193.62,2.86]
[1761385525630,3.85549532,193.64,193.62,2.86]
[1761385525833,3.85549532,193.63,193.62,2.86]
[1761385526133,3.85549532,193.65,193.62,2.86]
[1761385526332,3.85549532,193.64,193.62,2.86]
[1761385526530,3.85549532,193.63,193.61,65.1]
[1761385526833,3.85549532,193.65,193.61,65.1]
[1761385527032,3.85549532,193.64,193.61,65.1]
[1761385527233,3.85549532,193.63,193.61,65.1]
[1761385527433,3.85549532,193.65,193.61,65.1]
[1761385527635,3.85549532,193.64,193.61,2.86]
[1761385527934,3.85549532,193.63,193.61,2.86]
[1761385528135,3.85549532,193.65,193.61,2.86]
[1761385528329,3.85549532,193.64,193.61,2.86]
[1761385528526,3.85549532,193.63,193.55,2.86]
[1761385528727,3.85549532,193.63,193.39,15.93931284]
[1761385528728,4.7792176,193.61,193.46,2.86]
[1761385529030,3.85549532,193.6,193.52,2.86]
[1761385529234,3.85549532,193.59,193.52,2.86]
[1761385529636,3.85549532,193.61,193.52,2.86]
[1761385529836,3.85549532,193.6,193.52,2.86]
[1761385530032,3.85549532,193.59,193.52,2.86]
[1761385530232,3.85549532,193.61,193.54,2.86]
[1761385530436,3.85549532,193.6,193.56,2.86]
[1761385530633,8.18248924,193.63,193.56,2.86]
[1761385530930,3.85549532,193.62,193.56,65.1]
[1761385531138,3.85549532,193.61,193.57,2.86]
[1761385531326,3.85549532,193.62,193.57,2.86]
[1761385531529,3.85549532,193.61,193.57,2.86]
[1761385531731,3.85549532,193.62,193.57,2.86]
[1761385531933,3.85549532,193.61,193.57,2.86]
[1761385532132,3.85549532,193.62,193.57,2.86]
[1761385532334,3.85549532,193.61,193.57,2.86]
[1761385532535,3.85549532,193.62,193.57,2.86]
[1761385532733,3.85549532,193.61,193.57,2.86]
[1761385532941,3.85549532,193.62,193.57,2.86]
[1761385533242,3.85549532,193.61,193.57,2.86]
[1761385533435,3.85549532,193.62,193.57,2.86]
[1761385533635,3.85549532,193.61,193.57,2.86]
[1761385533838,3.85549532,193.62,193.57,2.86]
[1761385534037,3.85549532,193.61,193.57,2.86]
[1761385534237,3.85549532,193.62,193.57,2.86]
[1761385534438,3.85549532,193.61,193.57,2.86]
[1761385534637,3.85549532,193.62,193.57,2.86]
[1761385537837,3.85549532,193.61,193.57,2.86]
[1761385538038,3.85549532,193.62,193.57,2.86]
[1761385538237,3.85549532,193.61,193.57,2.86]
[1761385538437,3.85549532,193.62,193.57,2.86]
[1761385538638,3.85549532,193.61,193.57,2.86]
[1761385538837,3.85549532,193.62,193.57,2.86]
[1761385539037,3.85549532,193.61,193.57,2.86]
[1761385539237,3.85549532,193.6,193.52,62.24]
[1761385539441,3.85549532,193.6,193.53,2.65]
[1761385540144,1.50173538,193.61,193.53,2.65]
[1761385540145,3.85549532,193.59,193.53,2.65]
[1761385540342,3.85549532,193.6,193.53,2.65]
[1761385540544,3.85549532,193.59,193.53,2.65]
[1761385540743,3.85549532,193.6,193.53,2.65]
[1761385544949,3.85549532,193.61,193.53,2.65]
[1761385545251,4.392313,193.62,193.53,2.65]
[1761385545252,3.85549532,193.6,193.53,2.65]
[1761385545445,3.85549532,193.61,193.53,2.65]
[1761385545645,3.85549532,193.6,193.53,2.65]
[1761385545846,3.85549532,193.61,193.53,2.65]
[1761385546046,3.85549532,193.6,193.53,2.65]
[1761385546253,3.85549532,193.61,193.53,2.65]
[1761385546451,3.85549532,193.6,193.54,2.65]
[1761385546649,3.85549532,193.61,193.54,2.65]
[1761385546950,3.85549532,193.6,193.54,2.65]
[1761385547153,3.85549532,193.61,193.54,2.65]
[1761385547452,3.85549532,193.6,193.54,2.65]
[1761385547751,3.85549532,193.61,193.54,2.65]
[1761385547950,3.85549532,193.6,193.54,2.65]
[1761385548150,3.85549532,193.61,193.54,2.65]
[1761385548351,3.85549532,193.6,193.54,2.65]
[1761385548545,3.85549532,193.61,193.54,2.65]
[1761385548741,3.85549532,193.6,193.54,2.65]
[1761385548948,3.85549532,193.61,193.54,2.65]
[1761385549349,3.85549532,193.6,193.54,2.65]
[1761385549655,3.85549532,193.62,193.54,2.65]
[1761385549950,3.85549532,193.61,193.54,2.65]
[1761385550146,3.85549532,193.6,193.54,2.65]
[1761385550347,3.85549532,193.62,193.54,2.65]
[1761385550548,3.85549532,193.61,193.54,2.65]
[1761385550743,3.85549532,193.6,193.54,2.65]
[1761385550946,3.85549532,193.61,193.54,2.65]
[1761385551147,3.85549532,193.6,193.54,2.65]
[1761385551355,3.85549532,193.61,193.54,2.65]
[1761385551550,3.85549532,193.6,193.54,2.65]
[1761385551750,3.85549532,193.61,193.54,2.65]
[1761385551952,3.85549532,193.6,193.54,2.65]
[1761385552152,3.85549532,193.61,193.54,2.65]
[1761385552454,3.85549532,193.6,193.54,2.65]
[1761385552657,3.85549532,193.59,193.54,2.65]
[1761385552854,3.85549532,193.61,193.54,2.65]
[1761385553054,3.85549532,193.6,193.54,2.65]
[1761385553257,3.85549532,193.59,193.54,2.65]
[1761385553554,3.85549532,193.61,193.54,2.65]
[1761385553754,3.85549532,193.6,193.54,2.65]
[1761385553950,3.85549532,193.59,193.54,2.65]
[1761385554258,3.85549532,193.61,193.54,2.65]
[1761385554446,3.85549532,193.6,193.54,2.65]
[1761385554650,3.85549532,193.59,193.54,2.65]
[1761385554856,3.85549532,193.61,193.54,2.65]
[1761385555155,3.85549532,193.6,193.54,2.65]
[1761385555455,4.39271702,193.62,193.54,2.65]
[1761385555456,3.85549532,193.59,193.54,2.65]
[1761385555655,8.24821234,193.61,193.54,2.65]
[1761385555853,3.85549532,193.6,193.54,2.65]
[1761385556057,3.85549532,193.59,193.54,2.65]
[1761385556258,3.85549532,193.6,193.54,2.65]
[1761385556459,3.85549532,193.59,193.54,2.65]
[1761385556759,3.85549532,193.6,193.54,2.65]
[1761385556959,3.85549532,193.59,193.54,2.65]
[1761385557161,3.85549532,193.6,193.54,2.65]
[1761385557362,3.85549532,193.59,193.54,2.65]
[1761385557558,8.25291286,193.62,193.54,2.65]
[1761385557863,3.85549532,193.61,193.54,2.65]
[1761385558063,3.85549532,193.6,193.54,2.65]
[1761385558267,3.85549532,193.59,193.54,2.65]
[1761385558460,3.85549532,193.61,193.54,2.65]
[1761385558659,3.85549532,193.6,193.54,2.65]
[1761385558860,3.85549532,193.59,193.54,2.65]
[1761385559059,3.85549532,193.61,193.54,2.65]
[1761385559258,3.85549532,193.6,193.54,2.65]
[1761385559565,3.85549532,193.59,193.54,2.65]
[1761385559766,3.85549532,193.61,193.54,2.65]
[1761385559967,3.85549532,193.6,193.54,2.65]
[1761385560170,3.85549532,193.59,193.54,2.65]
[1761385560373,3.85549532,193.61,193.54,2.65]
[1761385560575,3.85549532,193.6,193.54,2.65]
[1761385560873,3.85549532,193.59,193.54,2.65]
[1761385561069,3.85549532,193.61,193.54,2.65]
[1761385561277,3.85549532,193.6,193.54,2.65]
[1761385561467,3.85549532,193.59,193.54,2.65]
[1761385561671,3.85549532,193.61,193.54,2.65]
[1761385561874,3.85549532,193.6,193.54,2.65]
[1761385562076,3.85549532,193.59,193.54,2.65]
[1761385562271,3.85549532,193.58,193.54,2.65]
[1761385562473,3.85549532,193.57,193.47,2.87]
[1761385562664,3.85549532,193.56,193.49,2.87]
[1761385562869,3.85549532,193.55,193.49,2.87]
[1761385563075,3.85549532,193.57,193.49,2.87]
[1761385563372,3.85549532,193.56,193.49,2.87]
[1761385563576,3.85549532,193.55,193.49,2.87]
[1761385563772,3.85549532,193.57,193.49,2.87]
[1761385563975,3.85549532,193.56,193.49,2.87]
[1761385564173,3.85549532,193.57,193.49,2.87]
[1761385564365,3.85549532,193.56,193.49,2.87]
[1761385564576,3.85549532,193.57,193.49,2.87]
[1761385564776,3.85549532,193.56,193.49,2.87]
[1761385564976,3.85549532,193.57,193.49,2.87]
[1761385565176,3.85549532,193.56,193.49,2.87]
[1761385565474,3.85549532,193.57,193.49,2.87]
[1761385565674,2.34869043,193.58,193.49,2.87]
[1761385565675,3.85549532,193.56,193.49,2.87]
[1761385565981,2.34869043,193.54,193.45,62.24]
[1761385566171,3.85549532,193.53,193.46,2.87]
[1761385566978,3.85549532,193.52,193.46,2.87]
[1761385567174,3.85549532,193.53,193.46,2.87]
[1761385567974,3.85549532,193.52,193.46,2.87]
[1761385568170,3.85549532,193.53,193.46,2.87]
[1761385568376,3.85549532,193.52,193.46,2.87]
[1761385568684,3.85549532,193.53,193.46,2.87]
[1761385568980,3.85549532,193.52,193.46,2.87]
[1761385569177,3.85549532,193.53,193.46,2.87]
[1761385570086,3.85549532,193.52,193.46,2.87]
[1761385570274,2.34869043,193.54,193.46,2.87]
[1761385570275,3.85549532,193.53,193.46,2.87]
[1761385570475,3.85549532,193.52,193.46,2.87]
[1761385570680,3.85549532,193.51,193.46,2.87]
[1761385570872,3.85549532,193.53,193.46,2.87]
[1761385571181,3.85549532,193.52,193.46,2.87]
[1761385571382,3.85549532,193.51,193.46,2.87]
[1761385571587,3.85549532,193.53,193.46,2.87]
[1761385571882,3.85549532,193.52,193.46,2.87]
[1761385572079,3.85549532,193.53,193.41,2.71]
[1761385572384,3.85549532,193.52,193.41,2.71]
[1761385572582,3.85549532,193.51,193.41,2.71]
[1761385572784,3.85549532,193.53,193.41,2.71]
[1761385573083,3.85549532,193.52,193.41,2.71]
[1761385573284,3.85549532,193.53,193.41,2.71]
[1761385573484,3.85549532,193.52,193.41,2.71]
[1761385573687,3.85549532,193.53,193.41,2.71]
[1761385573978,6.72484915,193.54,193.41,2.71]
[1761385573979,3.85549532,193.52,193.41,2.71]
[1761385574178,3.85549532,193.53,193.41,2.71]
[1761385574378,3.85549532,193.52,193.41,2.71]
[1761385574584,3.85549532,193.53,193.41,2.71]
[1761385574783,3.85549532,193.52,193.41,2.71]
[1761385574979,3.85549532,193.53,193.41,64.97]
[1761385575289,3.85549532,193.53,193.42,2.71]
[1761385578174,2.34869043,193.5,193.42,2.71]
[1761385581587,6.26106894,193.5,193.42,2.71]
[1761385581786,3.91237851,193.49,193.42,2.71]
[1761385582192,2.34869043,193.5,193.42,2.71]
[1761385582491,6.26106894,193.5,193.42,2.71]
[1761385583192,6.26106894,193.5,193.38,2.71]
[1761385583381,3.91237851,193.49,193.38,2.71]
[1761385584095,2.34869043,193.5,193.38,2.71]
[1761385585194,2.34869043,193.45,193.38,2.71]
[1761385606801,1.50606423,193.42,193.38,2.71]
[1761385623115,1.50606423,193.39,193.3,2.64]
[1761385623415,3.969177,193.38,193.3,2.64]
[1761385623618,1.50606423,193.39,193.22,1.50606423]
[1761385623619,1.50606423,193.39,193.32,2.64]
[1761385623917,1.50606423,193.39,193.34,2.64]
[1761385624511,3.96641333,193.38,193.34,2.64]
[1761385626319,1.50606423,193.39,193.34,2.64]
[1761385626517,3.96626829,193.38,193.34,2.64]
[1761385626708,1.50606423,193.39,193.34,2.64]
[1761385626915,3.96626377,193.38,193.34,2.64]
[1761385627117,1.50606423,193.39,193.34,2.64]
[1761385627311,3.96559075,193.38,193.34,2.64]
[1761385627517,1.50606423,193.36,193.26,62.0]
[1761385627717,3.96559075,193.35,193.28,2.64]
[1761385630318,1.50606423,193.36,193.28,2.64]
[1761385630823,5.47165498,193.36,193.28,2.64]
[1761385631017,3.96559075,193.35,193.28,2.64]
[1761385631723,1.50606423,193.33,193.28,2.64]
[1761385638834,1.50606423,193.36,193.28,2.64]
[1761385640926,1.50606423,193.36,193.3,2.61]
[1761385643527,3.92598266,193.42,193.3,2.61]
[1761385643725,1.50606423,193.37,193.3,2.61]
[1761385656027,5.43073418,193.37,193.3,2.61]
[1761385656228,1.50606423,193.37,193.3,2.61]
[1761385657331,5.43506411,193.37,193.3,2.61]
[1761385657532,1.50606423,193.37,193.3,2.61]
[1761385661327,5.43630356,193.37,193.3,2.61]
[1761385661526,3.93023933,193.36,193.3,2.61]
[1761385662637,1.50606423,193.37,193.3,2.61]
[1761385663036,5.43630356,193.37,193.3,2.61]
[1761385663338,3.93023933,193.36,193.3,2.61]
[1761385663540,1.50606423,193.37,193.3,2.61]
[1761385663933,5.43630356,193.37,193.3,2.61]
[1761385664133,3.93023933,193.36,193.3,2.61]
[1761385665327,3.93023933,193.37,193.3,2.61]
[1761385665532,3.93023933,193.38,193.3,2.61]
[1761385666433,3.93023933,193.37,193.3,2.61]
[1761385666634,3.93023933,193.38,193.31,62.46]
[1761385666842,3.93023933,193.37,193.32,2.85]
[1761385667030,3.93023933,193.36,193.32,2.85]
[1761385667233,3.93023933,193.38,193.32,2.85]
[1761385667434,3.93023933,193.37,193.32,2.85]
[1761385667639,3.93023933,193.36,193.32,2.85]
[1761385667841,3.93023933,193.35,193.32,2.85]
[1761385668043,3.93023933,193.38,193.32,2.85]
[1761385668237,3.93023933,193.37,193.32,2.85]
[1761385668438,3.93023933,193.36,193.32,2.85]
[1761385668635,3.93023933,193.35,193.32,2.85]
[1761385668840,3.93023933,193.38,193.32,2.85]
[1761385669040,3.93023933,193.37,193.32,2.85]
[1761385669241,3.93023933,193.36,193.32,2.85]
[1761385669443,3.93023933,193.35,193.32,2.85]
[1761385669745,4.73835915,193.4,193.32,2.85]
[1761385669945,3.93633781,193.39,193.32,2.85]
[1761385670146,3.93633781,193.38,193.32,2.85]
[1761385670344,3.93633781,193.37,193.32,2.85]
[1761385670646,3.93633781,193.36,193.32,2.85]
[1761385670847,3.93633781,193.35,193.32,2.85]
[1761385671049,4.73835915,193.39,193.32,2.85]
[1761385671244,3.93723519,193.38,193.32,2.85]
[1761385671443,3.93723519,193.37,193.32,2.85]
[1761385671642,3.93723519,193.36,193.32,2.85]
[1761385671845,3.93723519,193.35,193.32,2.85]
[1761385672048,4.73835915,193.39,193.32,2.85]
[1761385672348,3.93861058,193.38,193.32,2.85]
[1761385672549,3.93861058,193.37,193.32,2.85]
[1761385672850,3.93861058,193.36,193.32,2.85]
[1761385673046,3.93861058,193.35,193.32,2.85]
[1761385673247,4.73835915,193.39,193.32,2.85]